bitfinex-derivatives/quotes_SOLF0:USTF0_20241101
["timestamp","ask_amount","ask_price","bid_price","bid_amount"]
[1730464424177,1.3829,168.89,168.78,7.4247]
[1730464424671,22.75771055,168.87,168.78,4.46]
[1730464424971,22.75771055,168.84,168.74,4.46]
[1730464425169,27.21771055,168.87,168.75,22.75771055]
[1730464425372,4.46,168.87,168.75,22.75771055]
[1730464426358,1.3829,168.89,168.81,2.9643]
[1730464426675,1.3829,168.89,168.75,22.75771055]
[1730464426877,2.9638,168.85,168.81,2.9644]
[1730464427078,1.3871,168.9,168.81,22.75771055]
[1730464427767,1.3871,168.9,168.8,4.46]
[1730464428273,24.14481055,168.9,168.8,4.46]
[1730464428959,2.9643,168.82,168.8,4.46]
[1730464430258,28.60481055,168.9,168.76,4.46]
[1730464430468,2.9641,168.83,168.79,2.9647]
[1730464431066,2.9641,168.83,168.76,4.46]
[1730464431265,2.9641,168.83,168.8,2.9645]
[1730464431570,2.9641,168.83,168.66,28.69151055]
[1730464431571,22.75771055,168.87,168.73,22.75771055]
[1730464431876,1.3852,168.82,168.74,2.9656]
[1730464432261,2.965,168.78,168.74,2.9656]
[1730464432462,24.14291055,168.82,168.66,22.75771055]
[1730464432664,22.75771055,168.79,168.66,22.75771055]
[1730464432867,22.75771055,168.76,168.64,4.46]
[1730464433067,4.46,168.78,168.6,22.75771055]
[1730464433068,22.75771055,168.74,168.6,22.75771055]
[1730464433266,22.75771055,168.74,168.6,27.21771055]
[1730464433267,2.5323,168.73,168.6,27.21771055]
[1730464433575,2.9671,168.66,168.6,27.21771055]
[1730464433871,5.8139,168.72,168.6,27.21771055]
[1730464434073,2.9671,168.66,168.62,2.9676]
[1730464434265,22.75771055,168.71,168.58,22.75771055]
[1730464434473,22.75771055,168.65,168.52,50.12512539]
[1730464434771,1.2643,168.64,168.49,22.75771055]
[1730464435079,2.9688,168.56,168.51,2.9696]
[1730464435466,2.6624,168.61,168.49,27.21771055]
[1730464436372,2.6624,168.61,168.47,42.68]
[1730464436373,2.9689,168.56,168.47,22.75771055]
[1730464436568,4.46,168.6,168.47,22.75771055]
[1730464436977,2.6624,168.61,168.5,22.75771055]
[1730464437171,2.6624,168.61,168.53,22.75771055]
[1730464437369,2.6624,168.61,168.57,2.9685]
[1730464437568,2.6624,168.61,168.53,22.75771055]
[1730464437969,2.9681,168.6,168.55,2.9688]
[1730464438172,2.6624,168.61,168.53,22.75771055]
[1730464439883,2.6624,168.61,168.56,2.9686]
[1730464440082,2.6624,168.61,168.53,22.75771055]
[1730464440272,1.2643,168.64,168.57,2.9685]
[1730464440273,4.2317,168.64,168.57,2.9685]
[1730464440469,4.2317,168.64,168.55,22.75771055]
[1730464440470,1.2643,168.64,168.55,22.75771055]
[1730464440677,4.46,168.66,168.55,22.75771055]
[1730464441069,2.9675,168.64,168.59,2.9681]
[1730464441265,8.4514,168.73,168.61,22.75771055]
[1730464441476,8.4514,168.73,168.57,27.23771055]
[1730464442773,2.9664,168.7,168.65,2.9671]
[1730464443084,3.9714,168.73,168.64,22.75771055]
[1730464443272,1.2629,168.73,168.71,2.9661]
[1730464443477,4.48,168.76,168.67,22.75771055]
[1730464444092,2.9656,168.74,168.69,2.9664]
[1730464444420,4.48,168.76,168.63,4.48]
[1730464444421,4.48,168.76,168.64,22.75771055]
[1730464444795,2.9661,168.72,168.68,2.9666]
[1730464444998,2.9661,168.72,168.64,22.75771055]
[1730464445401,2.9664,168.7,168.63,4.48]
[1730464445605,22.75771055,168.75,168.63,4.48]
[1730464446515,4.48,168.76,168.64,22.75771055]
[1730464446752,4.48,168.76,168.63,4.48]
[1730464446753,22.75771055,168.75,168.63,4.48]
[1730464446906,2.9662,168.71,168.66,2.967]
[1730464447418,22.75771055,168.75,168.66,2.967]
[1730464447596,22.75771055,168.75,168.61,27.31771055]
[1730464448011,2.9665,168.69,168.64,2.9672]
[1730464448216,22.75771055,168.73,168.59,22.75771055]
[1730464448455,1.2647,168.72,168.59,22.75771055]
[1730464448604,2.9671,168.66,168.62,2.9677]
[1730464448929,2.9671,168.66,168.57,4.56]
[1730464448930,2.608,168.71,168.61,22.75771055]
[1730464449100,2.9665,168.69,168.64,2.9672]
[1730464449312,2.9665,168.69,168.61,22.75771055]
[1730464449717,2.608,168.71,168.65,22.75771055]
[1730464450221,4.48,168.76,168.65,22.75771055]
[1730464450516,8.4742,168.78,168.65,22.75771055]
[1730464450715,2.9658,168.74,168.68,2.9665]
[1730464450919,2.9658,168.74,168.65,22.75771055]
[1730464450920,8.4742,168.78,168.65,22.75771055]
[1730464451405,2.9657,168.74,168.69,2.9664]
[1730464451603,8.4742,168.78,168.69,2.9664]
[1730464451935,8.4742,168.78,168.65,22.75771055]
[1730464452306,22.75771055,168.76,168.65,22.75771055]
[1730464452511,8.4742,168.78,168.65,22.75771055]
[1730464452712,8.4742,168.78,168.67,22.75771055]
[1730464452921,3.9142,168.78,168.71,2.966]
[1730464453111,3.9142,168.78,168.7,22.75771055]
[1730464453319,2.6495,168.78,168.7,22.75771055]
[1730464454118,2.6495,168.78,168.73,2.9657]
[1730464454415,2.6495,168.78,168.7,22.75771055]
[1730464454624,2.9651,168.77,168.7,22.75771055]
[1730464454801,2.9651,168.77,168.73,2.9658]
[1730464455410,2.6495,168.78,168.72,2.9659]
[1730464455411,5.6145,168.78,168.72,2.9659]
[1730464455616,5.6145,168.78,168.7,22.75771055]
[1730464456526,2.6495,168.78,168.7,22.75771055]
[1730464457010,5.6145,168.78,168.74,2.9655]
[1730464457509,2.9654,168.76,168.7,22.75771055]
[1730464457715,4.56,168.81,168.7,22.75771055]
[1730464457924,1.2961,168.83,168.73,22.75771055]
[1730464458214,1.2961,168.83,168.75,22.75771055]
[1730464458420,2.6788,168.84,168.75,22.75771055]
[1730464458810,2.9642,168.82,168.75,22.75771055]
[1730464459004,2.6788,168.84,168.75,22.75771055]
[1730464459205,2.6788,168.84,168.73,22.75771055]
[1730464459407,25.43651055,168.84,168.7,27.31771055]
[1730464460006,2.9648,168.79,168.75,2.9653]
[1730464460792,2.6788,168.84,168.75,2.9653]
[1730464461005,25.43651055,168.84,168.71,25.72371055]
[1730464461201,25.43651055,168.84,168.71,22.75771055]
[1730464461497,25.43651055,168.84,168.7,2.9663]
[1730464461498,22.75771055,168.81,168.7,2.9663]
[1730464461797,5.8707,168.8,168.7,2.9663]
[1730464461999,2.9658,168.73,168.7,2.9663]
[1730464462295,5.8707,168.8,168.65,27.31771055]
[1730464462489,5.8707,168.8,168.68,22.75771055]
[1730464462794,2.9652,168.77,168.73,2.9657]
[1730464463091,5.8707,168.8,168.68,22.75771055]
[1730464463297,2.9655,168.75,168.68,22.75771055]
[1730464463500,22.75771055,168.79,168.65,27.31771055]
[1730464463795,2.9656,168.74,168.65,27.31771055]
[1730464463992,2.9656,168.74,168.71,2.966]
[1730464464399,22.75771055,168.79,168.65,27.31771055]
[1730464464588,2.9655,168.75,168.65,27.31771055]
[1730464465495,2.9659,168.73,168.65,27.31771055]
[1730464465689,22.75771055,168.79,168.65,27.31771055]
[1730464465885,22.75771055,168.79,168.69,2.9664]
[1730464466094,2.9659,168.73,168.65,27.31771055]
[1730464466481,22.75771055,168.79,168.65,27.31771055]
[1730464466893,2.9658,168.73,168.65,27.31771055]
[1730464467194,22.75771055,168.79,168.65,27.31771055]
[1730464467401,2.9654,168.76,168.68,22.75771055]
[1730464467690,4.56,168.8,168.68,22.75771055]
[1730464468097,2.9652,168.77,168.72,2.9659]
[1730464468294,27.31771055,168.81,168.72,2.9659]
[1730464468693,2.9654,168.76,168.72,2.9659]
[1730464469195,2.9654,168.76,168.68,22.75771055]
[1730464469394,5.8472,168.83,168.68,22.75771055]
[1730464469796,5.8472,168.83,168.74,2.9656]
[1730464470296,5.8472,168.83,168.68,22.75771055]
[1730464470297,22.75771055,168.82,168.68,22.75771055]
[1730464470597,22.75771055,168.82,168.66,22.75771055]
[1730464470598,2.9652,168.77,168.66,22.75771055]
[1730464470996,2.9652,168.77,168.73,2.9656]
[1730464471384,22.75771055,168.82,168.66,22.75771055]
[1730464471590,22.75771055,168.82,168.74,2.9655]
[1730464471792,22.75771055,168.82,168.69,22.75771055]
[1730464472396,2.9652,168.77,168.73,2.9657]
[1730464472594,22.75771055,168.82,168.67,4.56]
[1730464472996,5.8472,168.83,168.67,4.56]
[1730464472997,22.75771055,168.79,168.67,4.56]
[1730464473300,22.75771055,168.73,168.62,4.32]
[1730464473500,2.7131,168.72,168.62,4.32]
[1730464474198,2.7131,168.72,168.57,22.75771055]
[1730464474506,22.75771055,168.71,168.58,4.32]
[1730464474703,2.7131,168.72,168.58,4.32]
[1730464474901,22.75771055,168.69,168.56,4.32]
[1730464475095,22.75771055,168.66,168.52,22.75771055]
[1730464475398,22.75771055,168.66,168.56,2.9686]
[1730464475803,2.9684,168.59,168.55,2.9689]
[1730464476003,22.75771055,168.63,168.5,42.72]
[1730464476196,22.75771055,168.63,168.51,4.32]
[1730464476197,2.6234,168.62,168.51,4.32]
[1730464476393,2.6234,168.62,168.38,8.10000188]
[1730464476394,2.9695,168.53,168.48,2.9702]
[1730464476594,22.75771055,168.55,168.45,4.32]
[1730464477106,22.75771055,168.55,168.45,2.9706]
[1730464477295,27.07771055,168.55,168.45,2.9706]
[1730464477489,2.9699,168.5,168.44,2.9708]
[1730464477697,22.75771055,168.53,168.38,22.75771055]
[1730464477902,22.75771055,168.53,168.39,4.32]
[1730464478109,2.9705,168.47,168.41,2.9713]
[1730464478401,22.75771055,168.5,168.38,4.32]
[1730464478606,22.75771055,168.5,168.4,2.9714]
[1730464478798,22.75771055,168.5,168.37,4.32]
[1730464479000,2.7249,168.52,168.32,27.3966389]
[1730464479001,22.75771055,168.47,168.34,4.32]
[1730464480004,4.32,168.49,168.36,22.75771055]
[1730464480300,22.75771055,168.5,168.36,22.75771055]
[1730464481220,7.0449,168.52,168.34,4.32]
[1730464481221,29.80261055,168.52,168.39,22.75771055]
[1730464481601,29.80261055,168.52,168.43,2.971]
[1730464482107,29.80261055,168.52,168.45,2.9707]
[1730464482108,2.9697,168.51,168.45,2.9707]
[1730464482506,29.80261055,168.52,168.4,4.32]
[1730464482710,2.97,168.49,168.43,2.9711]
[1730464483510,29.80261055,168.52,168.4,4.32]
[1730464483695,2.9699,168.5,168.44,2.9709]
[1730464484101,29.80261055,168.52,168.4,4.32]
[1730464484308,29.80261055,168.52,168.47,2.9704]
[1730464484809,32.77211055,168.52,168.45,2.9706]
[1730464485007,32.77211055,168.52,168.4,4.32]
[1730464485008,29.80261055,168.52,168.4,4.32]
[1730464485213,25.48261055,168.52,168.4,4.32]
[1730464485404,2.7249,168.52,168.41,22.75771055]
[1730464485910,4.32,168.57,168.45,22.75771055]
[1730464486211,27.07771055,168.58,168.45,22.75771055]
[1730464486419,2.9688,168.57,168.51,2.9697]
[1730464486598,27.07771055,168.58,168.46,4.32]
[1730464486798,27.07771055,168.58,168.47,22.75771055]
[1730464486799,4.32,168.58,168.47,22.75771055]
[1730464486996,7.2885,168.58,168.53,2.9692]
[1730464487205,2.9685,168.58,168.53,2.9692]
[1730464487711,22.75771055,168.61,168.53,2.9692]
[1730464487712,2.9683,168.59,168.53,2.9692]
[1730464488303,22.75771055,168.61,168.51,2.9696]
[1730464488504,22.75771055,168.61,168.47,22.75771055]
[1730464488706,2.9686,168.58,168.52,2.9694]
[1730464489013,2.9686,168.58,168.47,22.75771055]
[1730464489415,2.9686,168.58,168.53,2.9693]
[1730464489999,22.75771055,168.61,168.47,22.75771055]
[1730464490209,2.9681,168.6,168.55,2.9688]
[1730464490720,2.9684,168.59,168.53,2.9691]
[1730464490904,27.07771055,168.61,168.47,22.75771055]
[1730464491416,2.9687,168.57,168.52,2.9694]
[1730464491611,2.9687,168.57,168.47,22.75771055]
[1730464492322,2.9687,168.57,168.52,2.9694]
[1730464492914,2.9684,168.58,168.54,2.969]
[1730464493819,27.07771055,168.61,168.47,22.75771055]
[1730464494513,2.9683,168.59,168.55,2.9689]
[1730464494913,4.32,168.62,168.5,22.75771055]
[1730464495120,4.32,168.62,168.55,2.9688]
[1730464495719,2.9683,168.59,168.55,2.9688]
[1730464496315,2.9684,168.58,168.54,2.9691]
[1730464497017,2.9684,168.58,168.5,22.75771055]
[1730464497018,8.3127,168.63,168.5,22.75771055]
[1730464497405,3.9927,168.63,168.55,22.75771055]
[1730464497615,2.7382,168.63,168.55,22.75771055]
[1730464498015,2.7382,168.63,168.61,2.9678]
[1730464498213,2.7382,168.63,168.53,22.75771055]
[1730464498417,4.32,168.67,168.56,22.75771055]
[1730464499320,2.9673,168.65,168.61,2.9679]
[1730464499521,4.32,168.67,168.56,22.75771055]
[1730464499709,2.9671,168.66,168.61,2.9678]
[1730464499913,4.32,168.67,168.61,2.9678]
[1730464500109,4.32,168.67,168.56,22.75771055]
[1730464500308,2.9675,168.64,168.59,2.9682]
[1730464500507,27.07771055,168.67,168.53,22.75771055]
[1730464500719,22.75771055,168.64,168.53,4.32]
[1730464501032,2.968,168.61,168.57,2.9685]
[1730464501608,2.9678,168.62,168.56,2.9688]
[1730464501917,2.7418,168.63,168.54,22.75771055]
[1730464502117,5.7094,168.63,168.6,2.9681]
[1730464502318,4.32,168.67,168.56,22.75771055]
[1730464503214,2.9674,168.64,168.59,2.9681]
[1730464503415,4.32,168.67,168.56,22.75771055]
[1730464504122,2.9675,168.64,168.6,2.9679]
[1730464504520,2.9674,168.64,168.59,2.9682]
[1730464504727,4.32,168.67,168.56,22.75771055]
[1730464505429,27.07771055,168.67,168.54,22.75771055]
[1730464505726,27.07771055,168.67,168.55,4.18]
[1730464505932,27.07771055,168.67,168.58,2.9683]
[1730464506124,27.07771055,168.67,168.55,4.18]
[1730464506321,22.75771055,168.72,168.59,22.75771055]
[1730464507636,2.967,168.67,168.63,2.9674]
[1730464508218,2.9663,168.7,168.62,22.75771055]
[1730464508419,2.6373,168.73,168.62,22.75771055]
[1730464509029,2.9662,168.71,168.68,2.9666]
[1730464509425,2.9662,168.71,168.62,22.75771055]
[1730464509426,2.966,168.72,168.65,2.9671]
[1730464509629,2.6373,168.73,168.62,22.75771055]
[1730464510031,2.9663,168.71,168.67,2.9668]
[1730464510231,2.9663,168.71,168.62,22.75771055]
[1730464510433,25.39501055,168.73,168.61,4.18]
[1730464510635,22.75771055,168.7,168.61,4.18]
[1730464510838,22.75771055,168.67,168.58,4.18]
[1730464511033,2.9674,168.64,168.61,2.9678]
[1730464511346,4.18,168.72,168.58,4.18]
[1730464511347,22.75771055,168.7,168.58,4.18]
[1730464511542,2.9668,168.68,168.64,2.9672]
[1730464512432,22.75771055,168.7,168.58,4.18]
[1730464513033,2.9675,168.64,168.6,2.968]
[1730464513237,1.3807,168.74,168.6,2.968]
[1730464513238,22.75771055,168.82,168.63,22.75771055]
[1730464513437,2.9647,168.79,168.72,2.9658]
[1730464513638,2.9647,168.79,168.72,4.18]
[1730464513837,2.7384,168.83,168.71,4.18]
[1730464514138,2.9651,168.77,168.72,2.966]
[1730464514333,1.3631,168.82,168.71,4.18]
[1730464514839,2.9649,168.78,168.72,2.966]
[1730464515039,4.18,168.81,168.69,22.75771055]
[1730464515240,2.9654,168.76,168.69,25.72401055]
[1730464515636,2.9654,168.76,168.69,22.75771055]
[1730464515947,1.3631,168.82,168.69,22.75771055]
[1730464517128,2.9651,168.78,168.73,2.9658]
[1730464517441,5.5431,168.82,168.69,22.75771055]
[1730464517638,5.5431,168.82,168.73,2.9656]
[1730464517639,2.9649,168.79,168.73,2.9656]
[1730464518126,5.5431,168.82,168.69,22.75771055]
[1730464518330,5.5431,168.82,168.74,2.9656]
[1730464519137,5.5431,168.82,168.7,2.9661]
[1730464519329,22.75771055,168.81,168.67,26.93771055]
[1730464520040,2.9656,168.75,168.67,26.93771055]
[1730464520439,22.75771055,168.81,168.67,26.93771055]
[1730464520746,22.75771055,168.81,168.67,22.75771055]
[1730464521437,22.75771055,168.81,168.68,2.9666]
[1730464521637,22.75771055,168.81,168.67,22.75771055]
[1730464521838,5.5431,168.82,168.7,22.75771055]
[1730464522849,5.5431,168.82,168.73,2.9658]
[1730464523449,2.9648,168.79,168.74,2.9654]
[1730464523745,5.5431,168.82,168.7,22.75771055]
[1730464524436,1.3631,168.82,168.73,22.75771055]
[1730464524832,1.3631,168.82,168.73,26.93771055]
[1730464525036,1.3631,168.82,168.77,2.9651]
[1730464525037,2.9644,168.81,168.77,2.9651]
[1730464525447,2.9644,168.81,168.64,5.9348]
[1730464525448,1.3631,168.82,168.7,26.93771055]
[1730464525647,2.9647,168.8,168.74,2.9655]
[1730464525844,1.3631,168.82,168.7,26.93771055]
[1730464526543,2.9649,168.79,168.7,26.93771055]
[1730464526736,17.8,168.94,168.7,26.93771055]
[1730464526737,22.75771055,168.91,168.77,22.75771055]
[1730464526957,2.7285,168.91,168.8,22.75771055]
[1730464527243,2.963,168.89,168.84,2.9637]
[1730464527442,2.7285,168.91,168.8,22.75771055]
[1730464527644,2.9631,168.89,168.8,22.75771055]
[1730464528046,2.9631,168.89,168.83,2.964]
[1730464528244,2.9631,168.89,168.8,22.75771055]
[1730464528245,2.7285,168.91,168.8,22.75771055]
[1730464528550,2.9636,168.86,168.81,2.9643]
[1730464529347,2.7285,168.91,168.78,22.75771055]
[1730464529550,2.9634,168.87,168.78,22.75771055]
[1730464529743,2.7285,168.91,168.78,22.75771055]
[1730464529943,2.9635,168.87,168.82,2.9641]
[1730464530144,2.9635,168.87,168.78,22.75771055]
[1730464530952,2.7285,168.91,168.78,22.75771055]
[1730464531261,2.7285,168.91,168.84,2.9638]
[1730464531757,2.7285,168.91,168.83,2.964]
[1730464532258,2.7285,168.91,168.77,26.93771055]
[1730464532843,2.9636,168.86,168.8,2.9644]
[1730464533238,26.85771055,168.89,168.74,22.75771055]
[1730464533545,26.85771055,168.89,168.75,4.1]
[1730464533546,22.75771055,168.86,168.75,4.1]
[1730464533846,4.1,168.89,168.73,2.9656]
[1730464533847,2.9651,168.77,168.73,2.9656]
[1730464534447,2.6121,168.82,168.73,2.9656]
[1730464534647,2.9653,168.76,168.73,2.9656]
[1730464534957,2.9653,168.76,168.71,4.1]
[1730464535144,22.75771055,168.81,168.71,4.1]
[1730464535350,22.75771055,168.78,168.66,26.85771055]
[1730464535551,22.75771055,168.78,168.66,4.1]
[1730464535752,2.9656,168.74,168.66,26.85771055]
[1730464536053,22.75771055,168.8,168.66,26.85771055]
[1730464536054,4.1,168.79,168.66,26.85771055]
[1730464536257,4.1,168.79,168.69,2.9664]
[1730464536453,4.1,168.79,168.66,26.85771055]
[1730464536454,2.9656,168.75,168.66,26.85771055]
[1730464536659,4.1,168.79,168.66,26.85771055]
[1730464537249,4.1,168.79,168.69,2.9664]
[1730464538143,2.9653,168.76,168.69,2.9664]
[1730464538363,4.1,168.79,168.69,2.9664]
[1730464538757,2.9658,168.74,168.69,2.9664]
[1730464539665,4.1,168.79,168.69,2.9664]
[1730464539963,2.9658,168.73,168.66,26.85771055]
[1730464540261,2.9655,168.75,168.66,26.85771055]
[1730464540462,22.75771055,168.8,168.66,26.85771055]
[1730464540658,22.75771055,168.8,168.72,2.9659]
[1730464540865,22.75771055,168.8,168.66,26.85771055]
[1730464541454,2.9657,168.74,168.66,26.85771055]
[1730464541656,2.6121,168.82,168.63,22.75771055]
[1730464541657,26.85771055,168.75,168.63,22.75771055]
[1730464541957,22.75771055,168.72,168.6,22.75771055]
[1730464542153,2.66,168.74,168.6,26.85771055]
[1730464542356,2.66,168.74,168.62,22.75771055]
[1730464542558,2.9664,168.7,168.66,2.9669]
[1730464542765,2.66,168.74,168.62,22.75771055]
[1730464543358,4.1,168.75,168.66,22.75771055]
[1730464543754,2.9652,168.77,168.72,2.9658]
[1730464543957,2.66,168.79,168.72,2.9658]
[1730464544468,2.9652,168.77,168.72,2.9658]
[1730464544665,2.66,168.79,168.68,22.75771055]
[1730464544865,2.9654,168.76,168.71,2.9661]
[1730464545576,2.66,168.79,168.66,26.85771055]
[1730464546071,1.2848,168.85,168.66,26.85771055]
[1730464546072,22.75771055,168.84,168.71,22.75771055]
[1730464546457,22.75771055,168.84,168.72,4.1]
[1730464546661,2.9646,168.8,168.76,2.9652]
[1730464547468,3.9175,168.85,168.72,4.1]
[1730464547875,2.9646,168.8,168.76,2.9651]
[1730464548773,26.85771055,168.87,168.72,4.1]
[1730464548774,22.75771055,168.87,168.72,4.1]
[1730464548965,22.75771055,168.87,168.8,2.9645]
[1730464549364,2.9637,168.85,168.81,2.9643]
[1730464549578,22.75771055,168.89,168.76,22.75771055]
[1730464550077,2.9635,168.86,168.76,22.75771055]
[1730464550472,22.75771055,168.89,168.76,22.75771055]
[1730464550666,2.9641,168.83,168.79,2.9646]
[1730464551061,2.9635,168.86,168.82,2.9641]
[1730464551665,2.9635,168.86,168.83,2.964]
[1730464551866,2.9635,168.87,168.83,2.964]
[1730464552676,3.9786,168.9,168.84,2.9638]
[1730464552879,2.9632,168.88,168.84,2.9638]
[1730464554581,2.9634,168.87,168.83,2.9639]
[1730464555065,3.9786,168.9,168.78,4.1]
[1730464555666,2.9639,168.84,168.81,2.9643]
[1730464556969,26.73631055,168.9,168.76,22.75771055]
[1730464557175,26.73631055,168.9,168.78,2.9649]
[1730464557581,22.75771055,168.87,168.77,4.1]
[1730464557879,26.73631055,168.9,168.76,26.85771055]
[1730464558476,22.75771055,168.84,168.73,22.75771055]
[1730464558676,22.75771055,168.84,168.72,4.1]
[1730464559067,2.9645,168.81,168.75,2.9654]
[1730464559374,22.75771055,168.82,168.69,4.1]
[1730464559578,2.9651,168.77,168.69,7.0663]
[1730464559773,2.6323,168.8,168.69,4.1]
[1730464559973,25.39001055,168.8,168.65,4.1]
[1730464560173,2.9662,168.71,168.67,2.9667]
[1730464560379,22.75771055,168.77,168.62,50.10821203]
[1730464560568,22.75771055,168.77,168.64,4.1]
[1730464560779,2.9662,168.71,168.67,2.9667]
[1730464561170,22.75771055,168.77,168.64,4.1]
[1730464561372,22.75771055,168.74,168.62,27.35050148]
[1730464561676,22.75771055,168.74,168.62,4.1]
[1730464561871,2.9666,168.69,168.57,22.75771055]
[1730464562177,4.1,168.76,168.64,22.75771055]
[1730464562378,2.9659,168.73,168.67,2.9668]
[1730464562683,4.1,168.76,168.67,2.9668]
[1730464562883,22.75771055,168.74,168.64,4.06]
[1730464563486,2.6323,168.8,168.64,26.81771055]
[1730464563487,22.75771055,168.77,168.64,26.81771055]
[1730464563683,2.9658,168.73,168.68,2.9666]
[1730464564181,2.9658,168.73,168.64,26.81771055]
[1730464564377,2.9658,168.73,168.68,2.9665]
[1730464564683,22.75771055,168.77,168.64,26.81771055]
[1730464564985,22.75771055,168.75,168.65,2.9672]
[1730464565184,2.9664,168.7,168.65,2.9672]
[1730464565684,2.9664,168.7,168.66,2.967]
[1730464566684,22.75771055,168.77,168.69,2.9665]
[1730464567272,2.9658,168.74,168.69,2.9665]
[1730464567478,22.75771055,168.77,168.69,2.9665]
[1730464567781,4.06,168.78,168.66,22.75771055]
[1730464568284,2.9652,168.77,168.72,2.9658]
[1730464568485,2.9652,168.77,168.69,22.75771055]
[1730464568675,1.3758,168.79,168.69,22.75771055]
[1730464568880,2.9649,168.79,168.69,22.75771055]
[1730464569185,2.6323,168.8,168.71,22.75771055]
[1730464569388,5.597,168.8,168.73,2.9657]
[1730464569579,5.597,168.8,168.71,22.75771055]
[1730464569776,4.06,168.83,168.71,22.75771055]
[1730464570285,22.75771055,168.82,168.69,22.75771055]
[1730464570486,2.9654,168.76,168.69,22.75771055]
[1730464570783,1.2545,168.81,168.69,22.75771055]
[1730464570985,2.9661,168.72,168.68,7.0266]
[1730464571571,2.9651,168.77,168.68,4.06]
[1730464571776,2.6445,168.8,168.68,4.06]
[1730464571992,22.75771055,168.77,168.68,4.06]
[1730464572177,25.40221055,168.8,168.68,4.06]
[1730464572491,2.6445,168.8,168.69,22.75771055]
[1730464572891,2.9649,168.78,168.74,2.9655]
[1730464573189,2.9649,168.78,168.71,22.75771055]
[1730464573190,2.6445,168.8,168.71,22.75771055]
[1730464573883,5.6092,168.8,168.73,2.9657]
[1730464574192,2.6445,168.8,168.71,22.75771055]
[1730464575092,2.9649,168.78,168.74,2.9655]
[1730464575990,2.9649,168.78,168.75,2.9654]
[1730464576490,2.6445,168.8,168.71,22.75771055]
[1730464576691,2.965,168.78,168.74,2.9655]
[1730464576889,2.965,168.78,168.71,22.75771055]
[1730464577083,4.06,168.83,168.76,2.9651]
[1730464577285,6.6633,168.85,168.76,2.9651]
[1730464577889,2.9647,168.8,168.76,2.9651]
[1730464579074,2.6033,168.85,168.68,4.06]
[1730464579381,2.6033,168.85,168.75,22.75771055]
[1730464579990,2.6033,168.85,168.77,2.965]
[1730464580491,2.9648,168.79,168.75,2.9654]
[1730464582686,2.9649,168.78,168.75,2.9654]
[1730464583893,2.9649,168.78,168.74,4.06]
[1730464584091,2.9649,168.78,168.75,2.9654]
[1730464585188,2.9647,168.8,168.74,4.06]
[1730464585489,1.2813,168.89,168.78,22.75771055]
[1730464585700,2.9636,168.86,168.78,22.75771055]
[1730464586080,3.8966,168.89,168.78,22.75771055]
[1730464586276,2.9637,168.85,168.82,2.9641]
[1730464589485,2.9635,168.86,168.83,2.9639]
[1730464589991,2.9637,168.85,168.82,2.9641]
[1730464590788,2.964,168.84,168.81,2.9644]
[1730464591179,22.75771055,168.87,168.75,4.06]
[1730464592587,2.9644,168.81,168.78,2.9648]
[1730464593491,2.9644,168.81,168.75,4.06]
[1730464593803,2.9644,168.81,168.78,2.9648]
[1730464594096,2.9646,168.8,168.78,2.9648]
[1730464594304,22.75771055,168.87,168.78,2.9648]
[1730464594687,2.9643,168.82,168.78,2.9648]
[1730464595690,2.9643,168.82,168.75,4.06]
[1730464595691,22.75771055,168.87,168.75,4.06]
[1730464595896,22.75771055,168.87,168.77,2.9649]
[1730464596305,22.75771055,168.87,168.75,4.06]
[1730464596601,14.2392657,168.85,168.75,4.06]
[1730464597503,2.9647,168.8,168.76,2.9651]
[1730464597895,2.9647,168.8,168.75,4.06]
[1730464598494,2.9647,168.8,168.77,2.9649]
[1730464599186,2.9641,168.83,168.8,2.9644]
[1730464601406,2.9643,168.82,168.79,2.9647]
[1730464602205,2.9643,168.82,168.78,2.9648]